fUST/lending_fUST_20250411
["ID","MTS","AMOUNT","RATE_DAILY","PERIOD"]
[357696124,1744333860036,-173.059438,0.00273973,120]
[357696125,1744333860047,-173.059438,0.00273973,120]
[357696126,1744333860057,-173.059438,0.00273973,120]
[357696127,1744333860068,-173.059438,0.00273973,120]
[357696128,1744333860077,-173.059446,0.00273973,120]
[357696129,1744333860088,-151.0,0.00273973,120]
[357696130,1744333860100,-151.0,0.00273973,120]
[357696131,1744333860110,-151.0,0.00273973,120]
[357696132,1744333860120,-151.0,0.00273973,120]
[357696133,1744333860130,-151.0,0.00273973,120]
[357696134,1744333860139,-151.0,0.00273973,120]
[357696135,1744333860150,-151.0,0.00273973,120]
[357696136,1744333860160,-151.0,0.00273973,120]
[357696137,1744333860170,-151.0,0.00273973,120]
[357696138,1744333860180,-151.0,0.00273973,120]
[357696139,1744333860190,-258.736856,0.00273973,120]
[357696140,1744333860200,-347.406984,0.00273973,120]
[357696141,1744333860210,-20000.0,0.0027444,120]
[357696142,1744333860219,-151.0,0.00276027,120]
[357696143,1744333860230,-7000.0,0.0027661,120]
[357696144,1744333860239,-4999.0,0.0028,120]
[357696145,1744333860249,-151.0,0.00282822,120]
[357696146,1744333860259,-339.67089624,0.00284383,120]
[357696147,1744333860268,-151.0,0.00289616,120]
[357696148,1744333860279,-453.81,0.0029,120]
[357696149,1744333860290,-1741.25953362,0.00293767,100]
[357696150,1744333860300,-788.0,0.002949,120]
[357696151,1744333860310,-151.0,0.00296411,120]
[357696152,1744333860320,-541010.337458,0.00299637,90]
[357696153,1744333860366,-1000.0,0.00299999,120]
[357696154,1744333860376,-300.0,0.003,120]
[357696155,1744333860386,-1000.0,0.003,120]
[357696156,1744333860396,-245.07688146,0.003,120]
[357696157,1744333860405,-500.0,0.003,100]
[357696158,1744333860415,-2000.0,0.003,120]
[357696159,1744333860424,-500.0,0.003,120]
[357696160,1744333860433,-1000.0,0.003,120]
[357696161,1744333860443,-3158.40634775,0.003,120]
[357696162,1744333860452,-2652.306059,0.003,82]
[357696163,1744333860462,-150.6,0.00302717,120]
[357696164,1744333860472,-151.0,0.00303205,120]
[357696165,1744333860481,-339.67089624,0.00303417,120]
[357696166,1744333860491,-7500.0,0.00306807,120]
[357696167,1744333860500,-151.0,0.0031,120]
[357696168,1744333860509,-151.0,0.00316795,120]
[357696169,1744333860519,-804.72488792,0.00319644,120]
[357696170,1744333860528,-339.67089624,0.00322452,120]
[357696171,1744333860540,-151.0,0.00323589,120]
[357696172,1744333860549,-151.0,0.00329397,120]
[357696173,1744333860559,-151.0,0.00330384,120]
[357696174,1744333860568,-151.0,0.00337178,120]
[357696175,1744333860578,-3235.48190504,0.00338103,120]
[357696176,1744333860588,-266.7780799,0.00340043,120]
[357696177,1744333860598,-339.67089624,0.00341486,120]
[357696178,1744333860607,-151.0,0.00343973,120]
[357696179,1744333860617,-200.0,0.00344,120]
[357696180,1744333860627,-187041.29,0.0035,120]
[357696181,1744333860637,-151.0,0.00350767,120]
[357696182,1744333860646,-151.0,0.00357562,120]
[357696183,1744333860655,-339.67089624,0.00360521,120]
[357696184,1744333860664,-151.0,0.00364356,120]
[357696185,1744333860674,-151.0,0.00371151,120]
[357696186,1744333860685,-151.0,0.00377945,120]
[357696187,1744333860694,-2883.0,0.0037833,74]
[357696188,1744333860704,-339.67089624,0.00379555,120]
[357696189,1744333860714,-9999.0,0.0038,120]
[357696190,1744333860723,-513.0,0.0038463,7]
[357696191,1744333860732,-151.0,0.0038474,120]
[357696192,1744333860741,-151.0,0.00386274,120]
[357696193,1744333860751,-151.0,0.00391534,120]
[357696194,1744333860760,-541010.337458,0.00393754,120]
[357696195,1744333860769,-20000.0,0.00394444,120]
[357696196,1744333860779,-151.0,0.00398329,120]
[357696197,1744333860788,-339.67089624,0.0039859,120]
[357696198,1744333860798,-432.4,0.0039985,120]
[357696199,1744333860807,-200.0,0.004,120]
[357696200,1744333860818,-10000.0,0.004,90]
[357696201,1744333860828,-1000.0,0.004,120]
[357696202,1744333860837,-6320.19842192,0.004,120]
[357696203,1744333860846,-151.0,0.00405123,120]
[357696204,1744333860856,-151.0,0.00411918,120]
[357696205,1744333860866,-100000.0,0.004176,50]
[357696206,1744333860876,-339.67089624,0.00417624,120]
[357696207,1744333860886,-804.72488792,0.00417857,120]
[357696208,1744333860895,-151.0,0.00418712,120]
[357696209,1744333860905,-151.0,0.00425507,120]
[357696210,1744333860915,-151.0,0.00432301,120]
[357696211,1744333860925,-339.67089624,0.00436659,120]
[357696212,1744333860935,-151.0,0.00439096,120]
[357696213,1744333860944,-200.0,0.0044,120]
[357696214,1744333860954,-2950.3,0.0044286,68]
[357696215,1744333860964,-151.0,0.00443151,120]
[357696216,1744333860974,-500000.0,0.004444,30]
[357696217,1744333860984,-151.0,0.0044589,120]
[357696218,1744333860993,-151.0,0.00452685,120]
[357696219,1744333861003,-151.0,0.004538,120]
[357696220,1744333861012,-339.67089624,0.00455693,120]
[357696221,1744333861025,-151.0,0.00459479,120]
[357696222,1744333861035,-10000.0,0.0046,120]
[357696223,1744333861044,-151.0,0.00466274,120]
[357696224,1744333861055,-359.23282159,0.00469,120]
[357696225,1744333861064,-4457.06,0.0047,120]
[357696226,1744333861074,-2935.07,0.0047,60]
[357696227,1744333861084,-151.0,0.00473068,120]
[357696228,1744333861094,-339.67089624,0.00474728,120]
[357696229,1744333861104,-19999.0,0.00478,120]
[357696230,1744333861114,-151.0,0.00479863,120]
[357696231,1744333861125,-150.0,0.0048,120]
[357696232,1744333861134,-200.0,0.0048,120]
[357696233,1744333861144,-151.0,0.00486658,120]
[357696234,1744333861156,-151.0,0.00493452,120]
[357696235,1744333861171,-339.67089624,0.00493762,120]
[357696236,1744333861187,-541010.337458,0.00494076,120]
[357696237,1744333861202,-1000.0,0.00499999,120]
[357696238,1744333861213,-300.0,0.005,120]
[357696239,1744333861223,-1000.0,0.005,120]
[357696240,1744333861232,-1600.0,0.005,120]
[357696241,1744333861241,-500.0,0.005,120]
[357696242,1744333861251,-6500.0,0.005,120]
[357696243,1744333861260,-1000.0,0.005,120]
[357696244,1744333861269,-3729.17474881,0.005,120]
[357696245,1744333861278,-25000.0,0.005,90]
[357696246,1744333861288,-60414.55386308,0.005,120]
[357696247,1744333861298,-453.81,0.005,120]
[357696248,1744333861308,-5431.08,0.005,60]
[357696249,1744333861318,-290.0,0.00500027,120]
[357696250,1744333861327,-267.0,0.00500247,120]
[357696251,1744333861336,-339.67089624,0.00512797,120]
[357696252,1744333861346,-804.72488792,0.00516072,120]
[357696253,1744333861355,-2123.99650416,0.0052,120]
[357696254,1744333861364,-1000.0,0.00523,120]
[357696255,1744333861375,-20000.0,0.005255,120]
[357696256,1744333861384,-339.67089624,0.00531831,120]
[357696257,1744333861394,-200.0,0.0054,120]
[357696258,1744333861404,-250.0,0.0054,120]
[357696259,1744333861414,-180.4249842,0.00540342,120]
[357696260,1744333861424,-5519.76535126,0.00547945,120]
[357696261,1744333861434,-339.67089624,0.00550866,120]
[357696262,1744333861445,-1260.4237709,0.005573,120]
[357696263,1744333861454,-187041.29,0.0056,120]
[357696264,1744333861464,-49860.00101329,0.005676,120]
[357696265,1744333861474,-339.67089624,0.005699,120]
[357696266,1744333861484,-9999.0,0.0058,120]
[357696267,1744333861494,-200.0,0.0058,120]
[357696268,1744333861504,-9253.25601496,0.00585,120]
[357696269,1744333861513,-541010.337458,0.00591711,120]
[357696270,1744333861523,-200.0,0.006,120]
[357696271,1744333861532,-150.0,0.006,120]
[357696272,1744333861544,-1000.0,0.006,120]
[357696273,1744333861552,-151.0,0.006,120]
[357696274,1744333861562,-151.0,0.006,120]
[357696275,1744333861571,-804.72488792,0.00614286,120]
[357696276,1744333861581,-10000.0,0.00629999,120]
[357696277,1744333861591,-200.0,0.0064,120]
[357696278,1744333861601,-20000.0,0.006666,120]
[357696279,1744333861611,-9999.0,0.0068,120]
[357696280,1744333861620,-200.0,0.0068,120]
[357696281,1744333861630,-2563.0,0.0068,88]
[357696282,1744333861640,-270505.168729,0.00698565,120]
[357696283,1744333861649,-1000.0,0.00699999,120]
[357696284,1744333861659,-14587.79393623,0.007,120]
[357696285,1744333861669,-700.0,0.007,120]
[357696286,1744333861679,-5000.0,0.007,90]
[357696287,1744333861689,-2043.74727027,0.007,120]
[357696288,1744333861699,-1000.0,0.007,120]
[357696289,1744333861708,-200.0,0.007,120]
[357696290,1744333861718,-500.0,0.00706849,120]
[357696291,1744333861727,-500.0,0.00706849,120]
[357696292,1744333861736,-500.0,0.00706849,120]
[357696293,1744333861746,-500.0,0.00706849,120]
[357696294,1744333861756,-500.0,0.00706849,120]
[357696295,1744333861765,-500.0,0.00706849,120]
[357696296,1744333861775,-500.0,0.00706849,120]
[357696297,1744333861784,-500.0,0.00706849,120]
[357696298,1744333861794,-500.0,0.00706849,120]
[357696299,1744333861804,-500.0,0.00706849,120]
[357696300,1744333861814,-500.0,0.00706849,120]
[357696301,1744333861824,-500.0,0.00706849,120]
[357696302,1744333861834,-500.0,0.00706849,120]
[357696303,1744333861844,-500.0,0.00706849,120]
[357696304,1744333861854,-500.0,0.00706849,120]
[357696305,1744333861864,-500.0,0.00706849,120]
[357696306,1744333861873,-500.0,0.00706849,120]
[357696307,1744333861883,-500.0,0.00706849,120]
[357696308,1744333861893,-201.61974848,0.00706849,120]
[357696309,1744333861902,-27254.92627369,0.0071,120]
[357696310,1744333861912,-1000.0,0.00711,120]
[357696311,1744333861922,-804.72488792,0.00712588,120]
[357696312,1744333861932,-2000.00000099,0.0072,120]
[357696313,1744333861942,-18004.8509149,0.00737,120]
[357696314,1744333861951,-10000.0,0.00739,120]
[357696315,1744333861961,-200.0,0.0074,120]
[357696316,1744333861971,-1000.0,0.0074399,120]
[357696317,1744333861980,-189.45725517,0.0074747,120]
[357696318,1744333861989,-10000.0,0.007488,120]
[357696319,1744333861999,-1000.0,0.0074999,120]
[357696320,1744333862009,-3000.0,0.0075,120]
[357696321,1744334464830,1000.0,0.00025,120]
[357696355,1744335032012,-250.0,0.0001524,2]
[357696357,1744335032024,-556.07152269,0.00016228,2]
[357696359,1744335032035,-198.59134727,0.00016228,2]
[357696361,1744335032045,-300.0,0.00016229,2]
[357696363,1744335032054,-193.21657604,0.00016229,2]
[357696364,1744335032064,-109819.36260762,0.0001623,2]
[357696365,1744335032074,-250.0,0.00016338,2]
[357696366,1744335032084,-23036.90505318,0.00018246,2]
[357696367,1744335032093,-419.64641374,0.0002031,2]
[357696368,1744335032104,-208.49573115,0.000209,3]
[357696369,1744335032113,-599.999999,0.00021,2]
[357696370,1744335032123,-1000.0,0.00022,3]
[357696372,1744335032134,-4545.63499453,0.00022,2]
[357696402,1744335042957,-259.16698599,0.00022,2]
[357696413,1744335046069,-608.967281,0.00022,2]
[357696422,1744335460720,2000.0,0.00017,6]
[357696435,1744336231984,-250.0,0.0001514,2]
[357696436,1744336231994,-300.0,0.00016208,2]
[357696437,1744336232004,-485.70087776,0.00016209,2]
[357696438,1744336232013,-338.87411224,0.00016209,2]
[357696443,1744336232137,-161.12588776,0.00016209,2]
[357696446,1744336232146,-500.0,0.00016209,2]
[357696450,1744336232156,-500.0,0.00016209,2]
[357696452,1744336232166,-201.32551177,0.00016209,2]
[357696456,1744336232175,-500.0,0.00016209,2]
[357696458,1744336232185,-500.0,0.00016209,2]
[357696460,1744336232194,-500.0,0.00016209,2]
[357696462,1744336232204,-500.0,0.00016209,2]
[357696464,1744336232213,-500.0,0.00016209,2]
[357696466,1744336232223,-500.0,0.00016209,2]
[357696468,1744336232232,-500.0,0.00016209,2]
[357696469,1744336232241,-500.0,0.00016209,2]
[357696470,1744336232251,-500.0,0.00016209,2]
[357696472,1744336232260,-500.0,0.00016209,2]
[357696473,1744336232270,-500.0,0.00016209,2]
[357696475,1744336232279,-1659.19358518,0.00016209,2]
[357696477,1744336232289,-291.80058501,0.000209,3]
[357696479,1744336232299,-148.23131881,0.00021,2]
[357696512,1744336238063,-190.3116794,0.0002,2]
[357696514,1744336238073,-8.75868119,0.00021,2]
[357696516,1744336238083,-469.4758319,0.00021053,2]
[357696518,1744336238092,-627.89326573,0.0002148,2]
[357696527,1744336238214,-246.01201277,0.0002148,2]
[357696529,1744336238224,-1144.78798724,0.0002178,2]
[357696531,1744336238236,-778.00216922,0.0002178,2]
[357696533,1744336238248,-989.96187217,0.0002178,2]
[357696557,1744336240186,-3996.49915463,0.0002178,2]
[357696566,1744336243044,-283.03313126,0.0002178,2]
[357696567,1744336243055,-309.97349003,0.0002178,2]
[357696569,1744336243149,-15537.26677377,0.0002178,2]
[357696570,1744336243159,-189.0,0.00022,4]
[357696571,1744336243170,-166.0,0.00022,3]
[357696573,1744336243180,-166.0,0.00022,3]
[357696574,1744336243190,-166.0,0.00022,3]
[357696576,1744336243200,-166.0,0.00022,3]
[357696577,1744336243210,-172.0,0.00022,3]
[357696578,1744336243219,-261.6,0.00022177,15]
[357696579,1744336243228,-250.0,0.00022407,2]
[357696580,1744336243239,-371.96377908,0.00022702,2]
[357696581,1744336243248,-419.64641374,0.00024112,2]
[357696582,1744336243258,-8076.8850954,0.000248,2]
[357696597,1744336246275,-482.26492734,0.00016208,2]
[357696598,1744336246285,-519.5,0.00022507,15]
[357696599,1744336246294,-12401.03903253,0.000248,2]
[357696600,1744336246304,-2128.0,0.00025,2]
[357696601,1744336246314,-1646.0,0.00025,2]
[357696603,1744336246324,-419.64641374,0.00028,3]
[357696604,1744336246333,-419.64641374,0.00028,7]
[357696605,1744336246343,-2200.0,0.00032124,2]
[357696606,1744336246353,-150.364,0.00033462,2]
[357696608,1744336246362,-162.82677619,0.00039,25]
[357696610,1744336246373,-1735.29532997,0.0004,60]
[357696611,1744336246382,-4035.02243657,0.0004,120]
[357696614,1744336246404,-174.99017569,0.00041073,120]
[357696615,1744336246414,-548.28451954,0.00043835,120]
[357696616,1744336246424,-209.13351055,0.00045772,2]
[357696617,1744336246435,-283.11,0.00045832,30]
[357696618,1744336246445,-1290.53626113,0.00045852,61]
[357696619,1744336246455,-4086.21091501,0.00045862,2]
[357696622,1744337143116,600.0,0.00025001,120]
[357696623,1744337169582,700.0,0.00025,120]
[357696624,1744337193116,782.582,0.00025001,120]
[357696658,1744337432152,-250.0,0.0001504,2]
[357696659,1744337432163,-250.0,0.0001504,2]
[357696660,1744337432173,-500.0,0.00016187,2]
[357696661,1744337432183,-500.0,0.00016187,2]
[357696662,1744337432193,-500.0,0.00016187,2]
[357696663,1744337432202,-500.0,0.00016187,2]
[357696664,1744337432212,-500.0,0.00016187,2]
[357696665,1744337432224,-458.86058508,0.00016187,2]
[357696667,1744337432233,-500.0,0.00016187,2]
[357696669,1744337432243,-205.13882833,0.00016187,2]
[357696671,1744337432254,-294.86117167,0.00016187,2]
[357696672,1744337432264,-300.0,0.00016188,2]
[357696673,1744337432273,-877.2136,0.00016189,2]
[357696674,1744337432284,-419.71244257,0.00020344,2]
[357696675,1744337432293,-206.73076276,0.000209,3]
[357696676,1744337432302,-157.0,0.00021,2]
[357696677,1744337432312,-574.17342379,0.0002248,2]
[357696678,1744337432321,-261.5,0.00022734,15]
[357696679,1744337432331,-419.76,0.00024899,2]
[357696680,1744337432341,-419.76,0.00026269,2]
[357696681,1744337432351,-433.71426245,0.00026574,2]
[357696682,1744337432360,-419.76,0.00027639,2]
[357696683,1744337432369,-419.71244257,0.00028,3]
[357696684,1744337432378,-419.76,0.00029009,2]
[357696685,1744337432388,-419.76,0.00030379,2]
[357696686,1744337432398,-419.76,0.00031749,2]
[357696687,1744337432408,-419.76,0.00033118,2]
[357696688,1744337432418,-2200.0,0.00034294,7]
[357696689,1744337432428,-419.76,0.00034488,2]
[357696690,1744337432438,-419.76,0.00035858,2]
[357696691,1744337432447,-152.20373584,0.000362,98]
[357696692,1744337432468,-419.76,0.00037228,2]
[357696693,1744337432479,-419.76,0.00038598,2]
[357696694,1744337432488,-419.76,0.00039968,2]
[357696695,1744337432498,-419.76,0.00041338,120]
[357696696,1744337432508,-419.76,0.00042707,120]
[357696697,1744337432518,-684.97585879,0.00043312,15]
[357696698,1744337432678,-419.76,0.00044077,120]
[357696699,1744337432688,-23039.52457832,0.00045403,2]
[357696700,1744337432698,-419.76,0.00045447,120]
[357696701,1744337432708,-372.61641709,0.00045572,28]
[357696702,1744337432718,-203.88918169,0.00045592,2]
[357696703,1744337432728,-203.88918169,0.00045622,2]
[357696704,1744337432737,-14711.02547531,0.00045662,2]
[357696724,1744337438379,-310.338294,0.00045662,2]
[357696735,1744337440441,-3431.59890769,0.00045662,2]
[357696736,1744337440575,-3175.60697649,0.00045662,2]
[357696737,1744337440586,-645.26813057,0.00045662,61]
[357696738,1744337440596,-1754.79680408,0.00045662,10]
[357696739,1744337440608,-50808.63097244,0.00045662,10]
[357696767,1744337443358,-412.60625222,0.00045662,10]
[357696777,1744337446227,-12042.25238267,0.00045662,10]
[357696778,1744337446240,-1337.380915,0.00045662,10]
[357696779,1744337446251,-8011.1,0.00045662,10]
[357696780,1744337453377,250.0,0.0001494,2]
[357696781,1744337460260,250.0,0.0001494,2]
[357696782,1744337575675,250.0,0.0001494,2]
[357696783,1744338068544,500.0,0.00017,7]
[357696813,1744338632327,-250.0,0.00016085,2]
[357696814,1744338632338,-113.79675874,0.0001617,2]
[357696815,1744338632349,-186.20324126,0.0001617,2]
[357696816,1744338632359,-500.0,0.00016171,2]
[357696817,1744338632369,-500.0,0.00016171,2]
[357696818,1744338632378,-500.0,0.00016171,2]
[357696819,1744338632387,-500.0,0.00016171,2]
[357696820,1744338632397,-263.11163856,0.00016171,2]
[357696821,1744338632407,-837.33712642,0.00016436,2]
[357696822,1744338632417,-234.01893466,0.00020403,2]
[357696823,1744338632427,-419.71244257,0.00020403,2]
[357696824,1744338632437,-817.89807806,0.00028,2]
[357696825,1744338632447,-183.9112358,0.00034521,2]
[357696826,1744338632455,-370.89015304,0.00036949,15]
[357696827,1744338632465,-157.0,0.00036949,2]
[357696828,1744338632474,-3462.33071259,0.0003695,2]
[357696829,1744338632488,-3909.49653548,0.0003695,2]
[357696830,1744338632497,-2200.0,0.0003695,7]
[357696831,1744338632507,-404.886,0.00038771,2]
[357696832,1744338632518,-174.90541894,0.0004,120]
[357696833,1744338632528,-170.13,0.0004499,30]
[357696834,1744338632540,-253.88040396,0.00045,120]
[357696835,1744338632549,-268.59,0.000454,39]
[357696836,1744338632561,-2958.92775295,0.00045403,2]
[357696837,1744338632570,-170.10589782,0.0004543,2]
[357696838,1744338632580,-419.71244257,0.000455,10]
[357696839,1744338632589,-500.0,0.000455,30]
[357696840,1744338632600,-12816.9201405,0.0004551,2]
[357696841,1744338632609,-322.63406528,0.0004551,61]
[357696842,1744338632618,-151.0,0.0004551,120]
[357696843,1744338632628,-151.0,0.0004551,2]
[357696844,1744338632638,-64747.4,0.0004551,10]
[357696845,1744338632647,-1000.0,0.00045518,60]
[357696846,1744338632656,-262.552863,0.0004552,120]
[357696847,1744338632666,-151.0,0.0004552,2]
[357696848,1744338632676,-419.71244257,0.0004552,3]
[357696849,1744338632686,-20714.68618198,0.0004552,3]
[357696850,1744338632697,-778.07975671,0.0004552,3]
[357696851,1744338632709,-19926.29111222,0.0004552,3]
[357696852,1744338632721,-50571.85129019,0.0004552,3]
[357696853,1744338632730,-507.8422312,0.0004552,3]
[357696854,1744338632740,-151.0,0.0004553,2]
[357696855,1744338632750,-151.0,0.0004553,2]
[357696856,1744338632760,-4095.59523483,0.0004553,3]
[357696871,1744338638435,-88781.05920311,0.00045,2]
[357696873,1744338638448,-4855.48787274,0.00045,2]
[357696880,1744338638502,-5307.70757329,0.00045,2]
[357696929,1744338646428,-251.45684873,0.00016169,2]
[357696930,1744338646439,-259.62310713,0.00035259,7]
[357696931,1744338646450,-152.20373584,0.000362,98]
[357696932,1744338646459,-517.43609452,0.0004499,10]
[357696933,1744338646471,-53438.72390548,0.0004499,10]
[357696934,1744338646481,-128402.7079188,0.00045,2]
[357696935,1744338646523,-624.13025132,0.00045,2]
[357696937,1744339548337,5188.7278708,0.00016156,7]
[357696971,1744339838548,-250.0,0.00015985,2]
[357696973,1744339838558,-452.28775907,0.00016099,2]
[357696975,1744339838570,-47.71224093,0.00016099,2]
[357696977,1744339838581,-500.0,0.00016099,2]
[357696979,1744339838591,-500.0,0.00016099,2]
[357696982,1744339838600,-229.3970679,0.00016099,2]
[357696984,1744339838610,-262.81380891,0.00016099,2]
[357697068,1744339840939,-237.18619109,0.00016099,2]
[357697069,1744339840949,-500.0,0.00016099,2]
[357697070,1744339840959,-500.0,0.00016099,2]
[357697071,1744339840969,-500.0,0.00016099,2]
[357697072,1744339840979,-119.65573347,0.00016099,2]
[357697073,1744339840992,-380.34426653,0.00016099,2]
[357697074,1744339841001,-40.52616883,0.00016099,2]
[357697075,1744339841014,-272.79324484,0.00016099,2]
[357697076,1744339841029,-186.68058633,0.00016099,2]
[357697077,1744339841039,-500.0,0.00016099,2]
[357697078,1744339841049,-500.0,0.00016099,2]
[357697079,1744339841059,-500.0,0.00016099,2]
[357697080,1744339841069,-500.0,0.00016099,2]
[357697081,1744339841079,-500.0,0.00016099,2]
[357697082,1744339841089,-500.0,0.00016099,2]
[357697083,1744339841099,-500.0,0.00016099,2]
[357697084,1744339841108,-500.0,0.00016099,2]
[357697085,1744339841118,-428.75645467,0.00016099,2]
[357697086,1744339841128,-500.0,0.00016099,2]
[357697087,1744339841137,-381.72255801,0.00016099,2]
[357697088,1744339841147,-500.0,0.00016099,2]
[357697089,1744339841157,-500.0,0.00016099,2]
[357697090,1744339841167,-500.0,0.00016099,2]
[357697091,1744339841176,-500.0,0.00016099,2]
[357697092,1744339841186,-500.0,0.00016099,2]
[357697093,1744339841195,-500.0,0.00016099,2]
[357697094,1744339841205,-500.0,0.00016099,2]
[357697095,1744339841215,-500.0,0.00016099,2]
[357697096,1744339841224,-478.41,0.000161,2]
[357697097,1744339841234,-300.0,0.00016151,2]
[357697098,1744339841243,-245.75180036,0.00016151,2]
[357697099,1744339841253,-500.0,0.00016173,2]
[357697100,1744339841263,-500.0,0.000162,2]
[357697101,1744339841274,-501.35279026,0.000162,2]
[357697102,1744339841284,-500.0,0.000162,2]
[357697103,1744339841294,-1000.0,0.00016748,2]
[357697104,1744339841303,-322.82581037,0.00017296,2]
[357697114,1744339843563,-180.24742998,0.00017296,2]
[357697115,1744339843573,-208.13810406,0.000179,2]
[357697116,1744339843585,-385.44446596,0.00020472,2]
[357697122,1744339846572,-34.26797661,0.00020472,2]
[357697123,1744339846583,-157.0,0.00021,2]
[357697124,1744339846592,-456.85196924,0.00021652,2]
[357697125,1744339846601,-1000.0,0.00021679,2]
[357697126,1744339846611,-1008.14793454,0.00031698,5]
[357697127,1744339846621,-2200.0,0.00039595,14]
[357697128,1744339846630,-150.47926422,0.00043,15]
[357697129,1744339846639,-151.14194029,0.00043,15]
[357697130,1744339846649,-150.37867395,0.00043,15]
[357697131,1744339846659,-2128.67363436,0.000435,90]
[357697132,1744339846668,-500.0,0.00044,14]
[357697133,1744339846678,-500.0,0.00044,14]
[357697134,1744339846688,-500.0,0.00044,14]
[357697135,1744339846697,-500.0,0.00044,14]
[357697136,1744339846707,-500.0,0.00044,14]
[357697137,1744339846716,-500.0,0.00044,14]
[357697138,1744339846726,-500.0,0.00044,14]
[357697139,1744339846736,-500.0,0.00044,14]
[357697140,1744339846745,-503.60489333,0.00044,14]
[357697141,1744339846755,-150.77604643,0.00044,14]
[357697142,1744339846765,-151.2842887,0.00044,15]
[357697143,1744339846775,-150.99239811,0.00044,15]
[357697144,1744339846784,-150.40365409,0.00044,15]
[357697145,1744339846794,-151.11315444,0.00044,15]
[357697146,1744339846803,-153.22240707,0.00044,15]
[357697147,1744339846813,-205.91125633,0.00044,15]
[357697148,1744339846823,-400.20380726,0.00045,14]
[357697149,1744339846833,-1668.97169285,0.0004535,3]
[357697150,1744339846843,-1668.97169285,0.0004536,3]
[357697151,1744339846853,-16411.55543957,0.0004536,10]
[357697200,1744341032637,-250.0,0.00015885,2]
[357697202,1744341032648,-603.19516163,0.00023667,2]
[357697204,1744341032658,-375.74695089,0.00023667,2]
[357697206,1744341032667,-483.58472889,0.00023667,2]
[357697334,1744341039665,-4000.0,0.00023671,2]
[357697336,1744341039675,-325.5,0.00023673,15]
[357697338,1744341039685,-307.74014264,0.0002578,2]
[357697340,1744341039695,-300.0,0.00026574,2]
[357697342,1744341039705,-172.02626025,0.00026845,2]
[357697343,1744341039715,-1408.0599132,0.00034924,2]
[357697344,1744341039725,-2000.0,0.000435,15]
[357697345,1744341039735,-1962.0,0.000435,15]
[357697347,1744341039745,-514.0,0.000437,120]
[357697349,1744341039755,-1000.0,0.000438,90]
[357697351,1744341039764,-1000.0,0.000438,120]
[357697352,1744341039774,-2000.0,0.000439,15]
[357697353,1744341039784,-742.94546536,0.000439,28]
[357697354,1744341039794,-2000.0,0.00044,15]
[357697355,1744341039804,-2000.0,0.00044,15]
[357697356,1744341039814,-844.79862504,0.00044,15]
[357697548,1744342231762,-1634.0521649,0.000228,2]
[357697549,1744342231772,-300.0,0.00022812,2]
[357697550,1744342231782,-157.0,0.00022813,2]
[357697551,1744342231791,-319.34415658,0.00022813,2]
[357697552,1744342231801,-500.0,0.00022813,2]
[357697553,1744342231811,-167.04286692,0.00022813,2]
[357697554,1744342231820,-500.0,0.00022813,2]
[357697555,1744342231830,-500.0,0.00022813,2]
[357697556,1744342231840,-500.0,0.00022813,2]
[357697557,1744342231849,-500.0,0.00022813,2]